fUSD/lending_fUSD_20241121
["ID","MTS","AMOUNT","RATE_DAILY","PERIOD"]
[342931696,1732210270560,-852.66,0.0004,11]
[342931697,1732210270569,-500.0,0.0004,11]
[342931698,1732210270579,-1951.28,0.0004,11]
[342931699,1732210270589,-500.0,0.0004,11]
[342931700,1732210270599,-500.0,0.0004,11]
[342931701,1732210270609,-2111.16,0.0004,11]
[342931702,1732210270618,-1857.8,0.0004,11]
[342931703,1732210270628,-9039.41,0.0004,11]
[342931704,1732210270637,-500.0,0.0004,11]
[342931705,1732210270646,-500.0,0.0004,11]
[342931706,1732210270656,-500.0,0.0004,11]
[342931707,1732210270665,-556.13,0.0004,11]
[342931708,1732210270675,-500.0,0.0004,11]
[342931709,1732210270684,-500.0,0.0004,11]
[342931710,1732210270699,-500.0,0.0004,11]
[342931711,1732210270709,-2046.35,0.0004,11]
[342931712,1732210270718,-500.0,0.0004,11]
[342931713,1732210270727,-500.0,0.0004,11]
[342931714,1732210270736,-500.0,0.0004,11]
[342931715,1732210270745,-500.0,0.0004,11]
[342931716,1732210270756,-519.48,0.0004,11]
[342931717,1732210270767,-500.0,0.0004,11]
[342931718,1732210270777,-599.11,0.0004,11]
[342931719,1732210270787,-500.0,0.0004,11]
[342931720,1732210270798,-1240.59,0.0004,11]
[342931721,1732210270807,-1225.35,0.0004,11]
[342931722,1732210270816,-500.0,0.0004,11]
[342931723,1732210270826,-1680.95183296,0.0004,20]
[342931724,1732210270836,-500.0,0.0004,11]
[342931725,1732210270848,-2025.70546447,0.0004,2]
[342931726,1732210270858,-984.48,0.0004,11]
[342931727,1732210270868,-500.0,0.0004,11]
[342931728,1732210270878,-500.0,0.0004,11]
[342931729,1732210270888,-500.0,0.0004,120]
[342931730,1732210270898,-779.37,0.0004,11]
[342931731,1732210270907,-500.0,0.0004,11]
[342931732,1732210270917,-985.32,0.0004,11]
[342931733,1732210270926,-725.66,0.0004,11]
[342931734,1732210270936,-1197.37,0.0004,11]
[342931735,1732210270956,-500.0,0.0004,11]
[342931736,1732210270965,-710.21930914,0.0004,2]
[342931737,1732210270974,-3093.19,0.0004,11]
[342931738,1732210270983,-500.0,0.0004,11]
[342931739,1732210270992,-500.0,0.0004,11]
[342931740,1732210271002,-1700.89,0.0004,11]
[342931741,1732210271011,-1350.29,0.0004,11]
[342931742,1732210271020,-790.01,0.0004,11]
[342931743,1732210271029,-1047.03,0.0004,11]
[342931744,1732210271039,-944.48475965,0.0004,20]
[342931745,1732210271049,-500.0,0.0004,11]
[342931746,1732210271058,-500.0,0.0004,11]
[342931747,1732210271068,-1055.86,0.0004,11]
[342931748,1732210271078,-500.0,0.0004,7]
[342931749,1732210271087,-90925.29948322,0.0004,7]
[342931750,1732210271097,-500.0,0.0004,11]
[342931751,1732210271106,-500.0,0.0004,11]
[342931752,1732210271116,-760.51,0.0004,11]
[342931753,1732210271125,-500.0,0.0004,11]
[342931754,1732210271135,-1221.84,0.0004,11]
[342931755,1732210271145,-1244.04,0.0004,11]
[342931756,1732210271154,-500.0,0.0004,11]
[342931757,1732210271164,-209.81547221,0.0004,2]
[342931758,1732210271174,-1054.97,0.0004,11]
[342931759,1732210271183,-1282.37,0.0004,11]
[342931760,1732210271197,-500.0,0.0004,11]
[342931761,1732210271206,-500.0,0.0004,11]
[342931762,1732210271216,-3596.65,0.0004,11]
[342931763,1732210271226,-500.0,0.0004,11]
[342931764,1732210271235,-500.0,0.0004,11]
[342931765,1732210271245,-500.0,0.0004,11]
[342931766,1732210271255,-1509.38,0.0004,11]
[342931767,1732210271264,-1145.26,0.0004,11]
[342931768,1732210271274,-1009.48,0.0004,11]
[342931769,1732210271284,-610.19112603,0.0004,11]
[342931770,1732210271294,-922.38,0.0004,11]
[342931771,1732210271304,-2056.9,0.0004,11]
[342931772,1732210271314,-179.1254334,0.0004,11]
[342931773,1732210271324,-500.0,0.0004,11]
[342931774,1732210271334,-500.0,0.0004,11]
[342931775,1732210271343,-2912.74,0.0004,11]
[342931776,1732210271353,-500.0,0.0004,11]
[342931777,1732210271363,-1433.4,0.0004,11]
[342931778,1732210271373,-857.27,0.0004,11]
[342931779,1732210271383,-660.01,0.0004,11]
[342931780,1732210271393,-505.39,0.0004,11]
[342931781,1732210271402,-652.74,0.0004,11]
[342931782,1732210271411,-527.56,0.0004,11]
[342931783,1732210271420,-1022.92,0.0004,11]
[342931784,1732210271430,-584.37,0.0004,11]
[342931785,1732210271446,-500.0,0.0004,11]
[342931786,1732210271455,-515.32,0.0004,11]
[342931787,1732210271465,-813.78,0.0004,11]
[342931788,1732210271474,-500.0,0.0004,11]
[342931789,1732210271484,-2108.57,0.0004,11]
[342931790,1732210271494,-574.64,0.0004,11]
[342931791,1732210271504,-500.0,0.0004,11]
[342931792,1732210271514,-558.72,0.0004,11]
[342931793,1732210271524,-1664.84,0.0004,11]
[342931794,1732210271533,-3779.45,0.0004,11]
[342931795,1732210271543,-2329.59,0.0004,11]
[342931796,1732210271553,-500.0,0.0004,11]
[342931797,1732210271562,-500.0,0.0004,11]
[342931798,1732210271572,-500.0,0.0004,11]
[342931799,1732210271581,-500.0,0.0004,11]
[342931800,1732210271591,-453.48,0.0004,11]
[342931801,1732210271601,-500.0,0.0004,11]
[342931802,1732210271610,-3931.15,0.0004,11]
[342931803,1732210271620,-500.0,0.0004,11]
[342931804,1732210271630,-1196.21,0.0004,11]
[342931805,1732210271640,-904.02,0.0004,11]
[342931806,1732210271649,-721.67,0.0004,11]
[342931807,1732210271659,-2024.69,0.0004,11]
[342931808,1732210271669,-500.0,0.0004,11]
[342931809,1732210271678,-500.0,0.0004,11]
[342931810,1732210271688,-794.12,0.0004,7]
[342931811,1732210271700,-4525.19,0.0004,11]
[342931812,1732210271710,-500.0,0.0004,11]
[342931813,1732210271720,-500.0,0.0004,11]
[342931814,1732210271730,-897.8,0.0004,11]
[342931815,1732210271740,-2998.02,0.0004,120]
[342931816,1732210271750,-12306.64,0.0004,11]
[342931817,1732210271763,-358.2,0.0004,11]
[342931818,1732210271775,-500.0,0.0004,11]
[342931819,1732210271784,-500.0,0.0004,11]
[342931820,1732210271794,-1287.17,0.0004,11]
[342931821,1732210271806,-815.54,0.0004,11]
[342931822,1732210271815,-898.87,0.0004,11]
[342931823,1732210271826,-500.0,0.0004,11]
[342931824,1732210271836,-500.0,0.0004,11]
[342931825,1732210271847,-639.05,0.0004,11]
[342931826,1732210271857,-1660.99,0.0004,11]
[342931827,1732210271867,-645.95,0.0004,11]
[342931828,1732210271876,-500.0,0.0004,11]
[342931829,1732210271887,-1219.3962603,0.0004,4]
[342931830,1732210271897,-660.46,0.0004,11]
[342931831,1732210271906,-500.0,0.0004,11]
[342931832,1732210271916,-643.11,0.0004,11]
[342931833,1732210271927,-500.0,0.0004,11]
[342931834,1732210271938,-500.0,0.0004,11]
[342931835,1732210271949,-500.0,0.0004,11]
[342931836,1732210271959,-500.0,0.0004,11]
[342931837,1732210271969,-515.73,0.0004,11]
[342931838,1732210271978,-1804.93,0.0004,11]
[342931839,1732210271989,-500.0,0.0004,11]
[342931840,1732210271998,-500.0,0.0004,11]
[342931841,1732210272007,-500.0,0.0004,11]
[342931842,1732210272016,-500.0,0.0004,11]
[342931843,1732210272028,-856.28,0.0004,11]
[342931844,1732210272038,-150.0,0.00040004,2]
[342931845,1732210272048,-150.0,0.00040008,2]
[342931846,1732210272058,-150.0,0.0004001,2]
[342931847,1732210272068,-150.0,0.00040011,2]
[342931848,1732210272078,-150.0,0.00040012,2]
[342931849,1732210272088,-150.0,0.00040018,2]
[342931850,1732210272098,-150.0,0.0004002,2]
[342931851,1732210272108,-150.0,0.00040027,2]
[342931852,1732210272118,-150.0,0.0004003,2]
[342931853,1732210272128,-150.0,0.0004003,2]
[342931854,1732210272138,-150.0,0.00040033,2]
[342931855,1732210272150,-150.0,0.00040036,2]
[342931856,1732210272161,-150.0,0.00040038,2]
[342931857,1732210272170,-150.0,0.00040038,2]
[342931858,1732210272180,-150.0,0.0004004,2]
[342931859,1732210272191,-150.0,0.00040053,2]
[342931860,1732210272202,-150.0,0.00040057,2]
[342931861,1732210272213,-150.0,0.00040058,2]
[342931862,1732210272222,-150.0,0.00040061,2]
[342931863,1732210272233,-150.0,0.00040067,2]
[342931864,1732210272243,-150.0,0.00040072,2]
[342931865,1732210272253,-150.0,0.00040074,2]
[342931866,1732210272263,-150.0,0.00040083,2]
[342931867,1732210272274,-150.0,0.00040085,2]
[342931868,1732210272284,-316.66095455,0.00040096,2]
[342931869,1732210272294,-150.0,0.00040096,2]
[342931870,1732210272305,-150.0,0.00040101,2]
[342931871,1732210272315,-150.0,0.00040103,2]
[342931872,1732210272326,-1500.0,0.00040107,2]
[342931873,1732210272335,-150.0,0.00040107,2]
[342931874,1732210272345,-1500.0,0.00040109,2]
[342931875,1732210272355,-320.13,0.00040111,2]
[342931876,1732210272365,-150.0,0.00040125,2]
[342931877,1732210272375,-1337.07240297,0.00040128,120]
[342931878,1732210272386,-1500.0,0.00040148,2]
[342931879,1732210272395,-1500.0,0.00040154,2]
[342931880,1732210272406,-14744.11957107,0.00040162,15]
[342931881,1732210272416,-150.0,0.00040168,2]
[342931882,1732210272426,-220.0,0.00040173,2]
[342931883,1732210272436,-159.76949277,0.00040173,28]
[342931884,1732210272450,-1461.66921981,0.00040184,2]
[342931885,1732210272459,-1518.25046879,0.00040185,2]
[342931886,1732210272469,-150.0,0.00040198,2]
[342931887,1732210272479,-315.8090774,0.000402,2]
[342931888,1732210272488,-150.0,0.00040201,2]
[342931889,1732210272499,-150.0,0.0004021,2]
[342931890,1732210272509,-1500.0,0.00040217,2]
[342931891,1732210272520,-150.0,0.00040219,2]
[342931892,1732210272530,-150.0,0.0004023,2]
[342931893,1732210272540,-150.0,0.00040231,2]
[342931894,1732210272550,-4283.7556696,0.00040265,2]
[342931895,1732210272561,-784.6459147,0.00040265,2]
[342931896,1732210272571,-4968.859227,0.00040265,2]
[342931897,1732210272580,-538.096413,0.00040265,2]
[342931898,1732210272590,-673.5659111,0.00040265,2]
[342931899,1732210272601,-550.1529186,0.00040265,2]
[342931900,1732210272611,-500.0,0.00040273,11]
[342931901,1732210272621,-500.0,0.00040273,11]
[342931902,1732210272631,-500.0,0.00040273,11]
[342931903,1732210272641,-500.0,0.00040273,11]
[342931904,1732210272651,-212.67866339,0.00040273,11]
[342931905,1732210272662,-567.67952393,0.00040273,11]
[342931906,1732210272672,-500.0,0.00040273,11]
[342931907,1732210272875,-500.0,0.00040273,11]
[342931908,1732210272886,-500.0,0.00040273,11]
[342931909,1732210272895,-500.0,0.00040273,11]
[342931910,1732210272905,-500.0,0.00040273,11]
[342931911,1732210272915,-500.0,0.00040273,11]
[342931912,1732210272925,-500.0,0.00040273,11]
[342931913,1732210272935,-574.8,0.00040273,11]
[342931914,1732210272946,-283.42190948,0.00040273,11]
[342931915,1732210272955,-500.0,0.00040273,11]
[342931916,1732210272965,-500.0,0.00040273,11]
[342931917,1732210272974,-500.0,0.00040273,11]
[342931918,1732210272983,-500.0,0.00040273,11]
[342931919,1732210272993,-584.75,0.00040273,11]
[342931920,1732210273002,-500.0,0.00040273,11]
[342931921,1732210273012,-500.0,0.00040273,11]
[342931922,1732210273021,-610.11,0.00040273,11]
[342931923,1732210273031,-500.0,0.00040273,11]
[342931924,1732210273041,-590.3,0.00040273,11]
[342931925,1732210273050,-500.0,0.00040273,11]
[342931926,1732210273060,-500.0,0.00040273,11]
[342931927,1732210273070,-693.08,0.00040273,11]
[342931928,1732210273080,-500.0,0.00040273,11]
[342931929,1732210273089,-730.17,0.00040273,11]
[342931930,1732210273099,-500.0,0.00040273,11]
[342931931,1732210273108,-500.0,0.00040273,11]
[342931932,1732210273117,-500.0,0.00040273,11]
[342931933,1732210273127,-828.01,0.00040273,11]
[342931934,1732210273137,-500.0,0.00040273,11]
[342931935,1732210273146,-500.0,0.00040273,11]
[342931936,1732210273156,-500.0,0.00040273,11]
[342931937,1732210273166,-616.80985914,0.00040273,11]
[342931938,1732210273175,-500.0,0.00040273,11]
[342931939,1732210273185,-500.0,0.00040273,11]
[342931940,1732210273196,-500.0,0.00040273,11]
[342931941,1732210273206,-500.0,0.00040273,11]
[342931942,1732210273215,-609.78,0.00040273,11]
[342931943,1732210273225,-500.0,0.00040273,11]
[342931944,1732210273235,-300.0,0.00040273,11]
[342931945,1732210273245,-500.0,0.00040273,11]
[342931946,1732210273254,-561.96,0.00040273,11]
[342931947,1732210273264,-1000.0,0.00040273,11]
[342931948,1732210273274,-534.23,0.00040273,11]
[342931949,1732210273283,-602.41,0.00040273,11]
[342931950,1732210273292,-597.09,0.00040273,11]
[342931951,1732210273302,-526.42,0.00040273,11]
[342931952,1732210273311,-500.0,0.00040273,11]
[342931953,1732210273321,-500.0,0.00040273,11]
[342931954,1732210273331,-500.0,0.00040273,11]
[342931955,1732210273341,-500.0,0.00040273,11]
[342931956,1732210273351,-500.0,0.00040273,11]
[342931957,1732210273361,-500.0,0.00040273,11]
[342931958,1732210273370,-500.0,0.00040273,11]
[342931959,1732210273380,-500.0,0.00040273,11]
[342931960,1732210273389,-500.0,0.00040273,11]
[342931961,1732210273399,-608.28,0.00040273,11]
[342931962,1732210273408,-202.38533516,0.00040273,11]
[342931963,1732210273417,-500.0,0.00040273,11]
[342931964,1732210273427,-537.67,0.00040273,11]
[342931965,1732210273436,-500.0,0.00040273,11]
[342931966,1732210273448,-500.0,0.00040273,11]
[342931967,1732210273457,-502.0,0.00040273,11]
[342931968,1732210273468,-603.82,0.00040273,11]
[342931969,1732210273478,-500.0,0.00040273,11]
[342931970,1732210273488,-552.31,0.00040273,11]
[342931971,1732210273498,-728.81,0.00040273,11]
[342931972,1732210273508,-500.0,0.00040273,11]
[342931973,1732210273518,-500.0,0.00040273,11]
[342931974,1732210273528,-500.0,0.00040273,11]
[342931975,1732210273538,-703.69,0.00040273,11]
[342931976,1732210273548,-500.0,0.00040273,11]
[342931977,1732210273558,-535.45,0.00040273,11]
[342931978,1732210273567,-500.0,0.00040273,11]
[342931979,1732210273576,-759.87,0.00040273,11]
[342931980,1732210273586,-500.0,0.00040273,11]
[342931981,1732210273596,-701.78,0.00040273,11]
[342931982,1732210273607,-605.95,0.00040273,11]
[342931983,1732210273618,-500.0,0.00040273,11]
[342931984,1732210273628,-500.0,0.00040273,11]
[342931985,1732210273638,-598.66,0.00040273,11]
[342931986,1732210273648,-593.24,0.00040273,11]
[342931987,1732210273658,-500.0,0.00040273,11]
[342931988,1732210273675,-500.0,0.00040273,11]
[342931989,1732210273685,-526.23,0.00040273,11]
[342931990,1732210273696,-500.0,0.00040273,11]
[342931991,1732210273706,-500.0,0.00040273,11]
[342931992,1732210273716,-815.09,0.00040273,11]
[342931993,1732210273726,-500.0,0.00040273,11]
[342931994,1732210273736,-545.99,0.00040273,11]
[342931995,1732210273745,-602.84,0.00040273,11]
[342931996,1732210273756,-327.9785732,0.00040273,11]
[342931997,1732210273767,-500.0,0.00040273,11]
[342931998,1732210273777,-500.0,0.00040273,11]
[342931999,1732210273786,-605.03,0.00040273,11]
[342932000,1732210273795,-500.0,0.00040273,11]
[342932001,1732210273806,-500.0,0.00040273,11]
[342932002,1732210273816,-500.0,0.00040273,11]
[342932003,1732210273826,-1246.63,0.00040273,11]
[342932004,1732210273835,-500.0,0.00040273,11]
[342932005,1732210273848,-500.0,0.00040273,11]
[342932006,1732210273858,-500.0,0.00040273,11]
[342932007,1732210273867,-151.0,0.00040273,14]
[342932008,1732210273877,-598.18,0.00040273,11]
[342932009,1732210273886,-500.0,0.00040273,11]
[342932010,1732210273896,-1268.36,0.00040273,11]
[342932011,1732210273905,-800.15,0.00040273,11]
[342932012,1732210273915,-1024.7,0.00040273,11]
[342932013,1732210273924,-500.0,0.00040273,11]
[342932014,1732210273934,-500.0,0.00040273,11]
[342932015,1732210273946,-708.2,0.00040273,11]
[342932016,1732210273956,-500.0,0.00040273,11]
[342932017,1732210273966,-500.0,0.00040273,11]
[342932018,1732210273975,-500.0,0.00040273,11]
[342932019,1732210273985,-500.0,0.00040273,11]
[342932020,1732210273994,-887.84,0.00040273,11]
[342932021,1732210274004,-748.95,0.00040273,11]
[342932022,1732210274013,-625.3,0.00040273,11]
[342932023,1732210274023,-500.0,0.00040273,11]
[342932024,1732210274033,-562.06,0.00040273,11]
[342932025,1732210274043,-696.5,0.00040273,11]
[342932026,1732210274052,-500.0,0.00040273,11]
[342932027,1732210274062,-500.0,0.00040273,11]
[342932028,1732210274072,-354.64706343,0.00040273,11]
[342932029,1732210274082,-662.39,0.00040273,11]
[342932030,1732210274092,-500.0,0.00040273,11]
[342932031,1732210274102,-500.0,0.00040273,11]
[342932032,1732210274111,-575.84,0.00040273,11]
[342932033,1732210274121,-517.28,0.00040273,11]
[342932034,1732210274130,-602.81,0.00040273,11]
[342932035,1732210274139,-500.0,0.00040273,11]
[342932036,1732210274149,-500.0,0.00040273,11]
[342932037,1732210274159,-500.0,0.00040273,11]
[342932038,1732210274168,-624.49,0.00040273,11]
[342932039,1732210274178,-500.0,0.00040273,11]
[342932040,1732210274188,-500.0,0.00040273,11]
[342932041,1732210274201,-500.0,0.00040273,11]
[342932042,1732210274211,-500.0,0.00040273,11]
[342932043,1732210274220,-500.0,0.00040273,11]
[342932044,1732210274230,-890.31,0.00040273,11]
[342932045,1732210274240,-500.0,0.00040273,11]
[342932046,1732210274250,-500.0,0.00040273,11]
[342932047,1732210274261,-1406.57,0.00040273,11]
[342932048,1732210274270,-9875.74,0.00040273,2]
[342932049,1732210274280,-500.0,0.00040273,11]
[342932050,1732210274290,-500.0,0.00040273,11]
[342932051,1732210274300,-1500.25,0.00040273,11]
[342932052,1732210274310,-500.0,0.00040273,11]
[342932053,1732210274320,-868.47,0.00040273,11]
[342932054,1732210274330,-1073.37,0.00040273,11]
[342932055,1732210274340,-756.78,0.00040273,11]
[342932056,1732210274350,-500.0,0.00040273,11]
[342932057,1732210274359,-500.0,0.00040273,11]
[342932058,1732210274369,-1264.04,0.00040273,11]
[342932059,1732210274379,-723.44,0.00040273,11]
[342932060,1732210274389,-1164.27,0.00040273,11]
[342932061,1732210274399,-500.0,0.00040273,11]
[342932062,1732210274409,-500.0,0.00040273,11]
[342932063,1732210274419,-647.62,0.00040273,11]
[342932064,1732210274429,-460.85317971,0.00040273,11]
[342932065,1732210274439,-852.66,0.00040273,11]
[342932066,1732210274452,-500.0,0.00040273,11]
[342932067,1732210274462,-1951.28,0.00040273,11]
[342932068,1732210274471,-500.0,0.00040273,11]
[342932069,1732210274481,-500.0,0.00040273,11]
[342932070,1732210274490,-2111.16,0.00040273,11]
[342932071,1732210274499,-1857.8,0.00040273,11]
[342932072,1732210274509,-9039.41,0.00040273,11]
[342932073,1732210274518,-500.0,0.00040273,11]
[342932074,1732210274527,-500.0,0.00040273,11]
[342932075,1732210274537,-500.0,0.00040273,11]
[342932076,1732210274546,-556.13,0.00040273,11]
[342932077,1732210274557,-500.0,0.00040273,11]
[342932078,1732210274567,-500.0,0.00040273,11]
[342932079,1732210274576,-500.0,0.00040273,11]
[342932080,1732210274586,-2046.35,0.00040273,11]
[342932081,1732210274595,-500.0,0.00040273,11]
[342932082,1732210274604,-500.0,0.00040273,11]
[342932083,1732210274615,-500.0,0.00040273,11]
[342932084,1732210274625,-500.0,0.00040273,11]
[342932085,1732210274636,-519.48,0.00040273,11]
[342932086,1732210274646,-500.0,0.00040273,11]
[342932087,1732210274656,-599.11,0.00040273,11]
[342932088,1732210274665,-500.0,0.00040273,11]
[342932089,1732210274675,-1240.59,0.00040273,11]
[342932090,1732210274685,-1225.35,0.00040273,11]
[342932091,1732210274697,-500.0,0.00040273,11]
[342932092,1732210274706,-500.0,0.00040273,11]
[342932093,1732210274717,-984.48,0.00040273,11]
[342932094,1732210274726,-500.0,0.00040273,11]
[342932095,1732210274736,-500.0,0.00040273,11]
[342932096,1732210274745,-482.5773983,0.00040273,120]
[342932097,1732210274755,-779.37,0.00040273,11]
[342932098,1732210274769,-500.0,0.00040273,11]
[342932099,1732210274779,-985.32,0.00040273,11]
[342932100,1732210274789,-725.66,0.00040273,11]
[342932101,1732210274799,-1197.37,0.00040273,11]
[342932102,1732210274808,-500.0,0.00040273,11]
[342932103,1732210274818,-3093.19,0.00040273,11]
[342932104,1732210274827,-500.0,0.00040273,11]
[342932105,1732210274837,-500.0,0.00040273,11]
[342932106,1732210274848,-1700.89,0.00040273,11]
[342932107,1732210274858,-1350.29,0.00040273,11]
[342932108,1732210274868,-790.01,0.00040273,11]
[342932109,1732210274877,-1047.03,0.00040273,11]
[342932110,1732210274888,-500.0,0.00040273,11]
[342932111,1732210274897,-500.0,0.00040273,11]
[342932112,1732210274907,-1055.86,0.00040273,11]
[342932113,1732210274917,-500.0,0.00040273,7]
[342932114,1732210274928,-500.0,0.00040273,11]
[342932115,1732210274938,-760.51,0.00040273,11]
[342932116,1732210274949,-500.0,0.00040273,11]
[342932117,1732210274959,-500.0,0.00040273,11]
[342932118,1732210274969,-372.22550678,0.00040273,11]
[342932119,1732210274978,-1221.84,0.00040273,11]
[342932120,1732210274988,-1244.04,0.00040273,11]
[342932121,1732210274997,-1054.97,0.00040273,11]
[342932122,1732210275007,-1282.37,0.00040273,11]
[342932123,1732210275017,-500.0,0.00040273,11]
[342932124,1732210275027,-500.0,0.00040273,11]
[342932125,1732210275036,-3596.65,0.00040273,11]
[342932126,1732210275046,-500.0,0.00040273,11]
[342932127,1732210275055,-500.0,0.00040273,11]
[342932128,1732210275066,-500.0,0.00040273,11]
[342932129,1732210275075,-1509.38,0.00040273,11]
[342932130,1732210275085,-1145.26,0.00040273,11]
[342932131,1732210275095,-1009.48,0.00040273,11]
[342932132,1732210275105,-922.38,0.00040273,11]
[342932133,1732210275115,-2056.9,0.00040273,11]
[342932134,1732210275125,-500.0,0.00040273,11]
[342932135,1732210275135,-500.0,0.00040273,11]
[342932136,1732210275145,-2912.74,0.00040273,11]
[342932137,1732210275154,-500.0,0.00040273,11]
[342932138,1732210275164,-1433.4,0.00040273,11]
[342932139,1732210275174,-857.27,0.00040273,11]
[342932140,1732210275184,-660.01,0.00040273,11]
[342932141,1732210275197,-505.39,0.00040273,11]
[342932142,1732210275207,-652.74,0.00040273,11]
[342932143,1732210275217,-527.56,0.00040273,11]
[342932144,1732210275226,-1022.92,0.00040273,11]
[342932145,1732210275298,-584.37,0.00040273,11]
[342932146,1732210275308,-500.0,0.00040273,11]
[342932147,1732210275318,-515.32,0.00040273,11]
[342932148,1732210275328,-813.78,0.00040273,11]
[342932149,1732210275337,-500.0,0.00040273,11]
[342932150,1732210275347,-574.64,0.00040273,11]
[342932151,1732210275357,-2108.57,0.00040273,11]
[342932152,1732210275367,-500.0,0.00040273,11]
[342932153,1732210275377,-558.72,0.00040273,11]
[342932154,1732210275386,-1664.84,0.00040273,11]
[342932155,1732210275395,-3779.45,0.00040273,11]
[342932156,1732210275404,-2329.59,0.00040273,11]
[342932157,1732210275414,-500.0,0.00040273,11]
[342932158,1732210275424,-500.0,0.00040273,11]
[342932159,1732210275433,-503.27,0.00040273,11]
[342932160,1732210275444,-500.0,0.00040273,11]
[342932161,1732210275456,-429.03638422,0.00040273,11]
[342932162,1732210275465,-3931.15,0.00040273,11]
[342932163,1732210275475,-500.0,0.00040273,11]
[342932164,1732210275485,-1196.21,0.00040273,11]
[342932165,1732210275494,-904.02,0.00040273,11]
[342932166,1732210275505,-721.67,0.00040273,11]
[342932167,1732210275514,-2024.69,0.00040273,11]
[342932168,1732210275524,-500.0,0.00040273,11]
[342932169,1732210275534,-500.0,0.00040273,11]
[342932170,1732210275543,-794.12,0.00040273,7]
[342932171,1732210275552,-4525.19,0.00040273,11]
[342932172,1732210275561,-500.0,0.00040273,11]
[342932173,1732210275571,-500.0,0.00040273,11]
[342932174,1732210275582,-897.8,0.00040273,11]
[342932175,1732210275591,-12306.64,0.00040273,11]
[342932176,1732210275601,-500.0,0.00040273,11]
[342932177,1732210275610,-500.0,0.00040273,11]
[342932178,1732210275619,-1287.17,0.00040273,11]
[342932179,1732210275629,-815.54,0.00040273,11]
[342932180,1732210275639,-898.87,0.00040273,11]
[342932181,1732210275648,-500.0,0.00040273,11]
[342932182,1732210275659,-500.0,0.00040273,11]
[342932183,1732210275668,-639.05,0.00040273,11]
[342932184,1732210275678,-1660.99,0.00040273,11]
[342932185,1732210275689,-500.0,0.00040273,11]
[342932186,1732210275701,-660.46,0.00040273,11]
[342932187,1732210275710,-500.0,0.00040273,11]
[342932188,1732210275720,-643.11,0.00040273,11]
[342932189,1732210275729,-500.0,0.00040273,11]
[342932190,1732210275738,-500.0,0.00040273,11]
[342932191,1732210275749,-500.0,0.00040273,11]
[342932192,1732210275759,-500.0,0.00040273,11]
[342932193,1732210275772,-515.73,0.00040273,11]
[342932194,1732210275781,-1804.93,0.00040273,11]
[342932195,1732210275791,-393.34036159,0.00040273,11]